bitfinex/quotes_ETHUSD_20251026
["timestamp","ask_amount","ask_price","bid_price","bid_amount"]
[1761497319679,1.743314,4059.7,4059.6,0.00029668]
[1761497319873,1.743314,4059.7,4059.6,2.46359355]
[1761497320072,2.250194,4059.7,4059.6,3.44885405]
[1761497322986,2.250194,4059.7,4059.6,3.57205405]
[1761497325711,2.251194,4059.7,4059.6,3.57205405]
[1761497328284,1.744314,4059.7,4059.6,3.57205405]
[1761497329383,1.744314,4059.7,4059.6,6.68105405]
[1761497334181,1.744314,4059.7,4059.6,8.23625405]
[1761497337412,1e-08,4059.7,4059.6,8.23625405]
[1761497337614,0.001,4060.7,4059.6,8.23625405]
[1761497337615,0.01,4061.9,4061.0,2.46244767]
[1761497337914,0.01,4061.9,4061.0,7.56204767]
[1761497339313,0.01,4061.9,4061.0,7.56404767]
[1761497339912,0.01,4061.9,4061.0,4.45404767]
[1761497340112,0.01,4061.9,4061.0,8.26836093]
[1761497343012,0.001,4061.6,4061.0,8.26836093]
[1761497343515,0.001,4061.6,4061.0,5.15836093]
[1761497343733,0.001,4061.6,4061.0,8.26736093]
[1761497347754,0.001,4061.6,4061.0,8.39056093]
[1761497348122,0.001,4061.6,4061.0,8.38856093]
[1761497348352,0.001,4061.6,4061.0,4.84516093]
[1761497348571,0.4361,4061.1,4060.8,2.46253045]
[1761497348852,0.4361,4061.1,4061.0,2.46244767]
[1761497348853,0.001,4061.1,4061.0,2.46244767]
[1761497350019,0.001,4061.1,4061.0,2.92134767]
[1761497350351,0.001,4061.1,4061.0,4.01670081]
[1761497356059,0.001,4061.1,4061.0,2.46244767]
[1761497358659,0.001,4061.1,4061.0,2.58564767]
[1761497359261,0.001,4061.1,4061.0,5.69164767]
[1761497360065,0.001,4061.1,4061.0,6.15054767]
[1761497363872,0.001,4061.1,4061.0,2.58564767]
[1761497364166,0.97358,4061.1,4061.0,5.69064767]
[1761497367376,0.97358,4061.1,4061.0,3.46542948]
[1761497367582,0.97358,4061.1,4061.0,6.57042948]
[1761497368771,0.50788,4061.1,4061.0,6.57042948]
[1761497369175,0.50788,4061.1,4061.0,6.56942948]
[1761497371460,0.50788,4061.1,4061.0,3.46542948]
[1761497371782,0.50788,4061.1,4061.0,6.56942948]
[1761497372856,0.50788,4061.1,4061.0,6.14854767]
[1761497374578,0.50788,4061.1,4061.0,5.68964767]
[1761497375675,0.50788,4061.1,4061.0,6.14854767]
[1761497376394,0.50788,4061.1,4061.0,5.68964767]
[1761497383910,0.50788,4061.1,4061.0,6.15544767]
[1761497384579,0.50788,4061.1,4061.0,5.68964767]
[1761497384992,0.50788,4061.1,4061.0,7.47825382]
[1761497385203,0.50788,4061.1,4061.0,6.15544767]
[1761497385402,0.50788,4061.1,4061.0,7.47825382]
[1761497385600,0.001,4061.1,4061.0,8.71859757]
[1761497386118,0.001,4061.1,4061.0,7.39579142]
[1761497387310,0.001,4061.1,4061.0,8.72460698]
[1761497389622,0.001,4061.1,4061.0,7.39579142]
[1761497390395,0.001,4061.1,4061.0,6.92999142]
[1761497392929,0.001,4061.1,4061.0,7.39579142]
[1761497397151,0.001,4061.1,4061.0,8.25832315]
[1761497397567,0.001,4061.1,4061.0,6.92999142]
[1761497398273,0.001,4061.1,4061.0,8.25833633]
[1761497399374,0.001,4061.1,4061.0,6.92999142]
[1761497401369,0.001,4061.1,4061.0,7.39579142]
[1761497402066,0.001,4061.1,4061.0,9.14380767]
[1761497402268,0.001,4061.1,4061.0,8.35699142]
[1761497403967,0.001,4061.1,4061.0,3.70279142]
[1761497404172,0.95708,4061.1,4061.0,5.56544767]
[1761497404473,0.50788,4061.1,4061.0,6.89315238]
[1761497409679,0.50788,4061.1,4061.0,5.56544767]
[1761497411778,0.001,4061.1,4061.0,5.56544767]
[1761497411964,0.001,4061.1,4061.0,6.23298528]
[1761497412162,0.001,4061.1,4061.0,6.35618528]
[1761497412366,0.001,4061.1,4061.0,8.22740153]
[1761497412779,0.001,4061.1,4061.0,8.69070153]
[1761497415190,0.001,4061.1,4061.0,10.46005351]
[1761497415887,0.001,4061.1,4061.0,9.99675351]
[1761497416087,0.001,4061.1,4061.0,9.68073726]
[1761497416293,0.001,4061.1,4061.0,10.14403726]
[1761497417391,0.001,4061.1,4061.0,10.60803726]
[1761497422702,0.001,4061.1,4061.0,10.48483726]
[1761497423001,0.001,4061.1,4061.0,10.92405351]
[1761497423573,0.001,4061.1,4061.0,9.15470153]
[1761497423976,0.001,4061.1,4061.0,5.58840153]
[1761497424199,0.001,4061.1,4061.0,9.15370153]
[1761497431811,0.001,4061.1,4061.0,8.69040153]
[1761497432016,0.001,4061.1,4061.0,9.15370153]
[1761497438010,0.001,4061.1,4061.0,8.69040153]
[1761497439039,0.001,4061.1,4061.0,3.71718528]
[1761497439213,0.95068,4061.1,4061.0,2.46244767]
[1761497439415,0.95068,4061.1,4061.0,5.56544767]
[1761497443232,0.95068,4061.1,4061.0,6.44939637]
[1761497444330,0.95068,4061.1,4061.0,5.56544767]
[1761497446941,0.95068,4061.1,4060.9,0.8839487]
[1761497446942,0.50688,4061.0,4060.9,0.8839487]
[1761497447243,0.50688,4061.0,4060.6,1.32836612]
[1761497447244,1.095436,4061.0,4060.6,0.002]
[1761497447442,0.72318,4060.7,4060.6,2.46467912]
[1761497447812,1.16598,4060.7,4060.6,2.46467912]
[1761497448011,1.16598,4060.7,4060.6,5.56867912]
[1761497448326,1.2971536,4060.7,4060.6,2.46467912]
[1761497448811,1.16598,4060.7,4060.6,2.46467912]
[1761497460532,0.72318,4060.7,4060.6,2.46467912]
[1761497460755,1.16598,4060.7,4060.6,2.46467912]
[1761497463057,1.16598,4060.7,4060.6,2.46469024]
[1761497464660,0.1232,4061.0,4060.9,2.46250831]
[1761497464962,0.001,4061.1,4060.9,5.68770831]
[1761497465160,0.97218,4061.0,4060.9,5.68770831]
[1761497465669,0.50688,4061.0,4060.9,5.68770831]
[1761497468583,0.97218,4061.0,4060.9,5.68770831]
[1761497469980,0.50688,4061.0,4060.9,5.68770831]
[1761497473761,0.97208,4061.0,4060.9,5.68770831]
[1761497474249,0.50688,4061.0,4060.9,6.59133249]
[1761497474457,0.001,4061.1,4061.0,2.46244767]
[1761497474672,0.001,4061.1,4061.0,5.78861379]
[1761497474883,0.001,4061.1,4061.0,4.46224767]
[1761497477468,0.001,4061.1,4061.0,4.96912767]
[1761497477801,0.001,4061.1,4061.0,6.37143217]
[1761497485477,0.001,4061.1,4061.0,5.92683217]
[1761497485891,0.96818,4061.1,4061.0,2.96932767]
[1761497486104,0.96818,4061.1,4061.0,5.56544767]
[1761497487704,0.96818,4061.1,4061.0,2.46244767]
[1761497488007,0.96818,4061.1,4061.0,5.56644767]
[1761497491631,0.96818,4061.1,4061.0,2.46244767]
[1761497491817,0.96818,4061.1,4061.0,5.56644767]
[1761497494803,0.50688,4061.0,4060.6,0.88353296]
[1761497495036,0.71878,4060.7,4060.6,5.56769024]
[1761497495517,1.18148,4060.7,4060.6,5.56769024]
[1761497496053,1.18148,4060.7,4060.6,5.69089024]
[1761497496936,1.18148,4060.7,4060.6,3.2282]
[1761497497141,1.18148,4060.7,4060.6,0.002]
[1761497497142,1.3143786,4060.7,4060.6,0.002]
[1761497505466,3.77700819,4060.7,4060.6,0.002]
[1761497509251,3.77800819,4060.7,4060.6,0.002]
[1761497510037,3.87654843,4060.7,4060.6,0.002]
[1761497518173,5.43174843,4060.7,4060.6,0.002]
[1761497519888,4.5249522,4060.3,4060.2,0.002]
[1761497520211,8.44992691,4060.3,4060.2,0.002]
[1761497520411,8.89262691,4060.3,4060.2,0.002]
[1761497520585,8.99118269,4060.3,4060.2,0.002]
[1761497525236,0.92053049,4060.3,4060.2,0.002]
[1761497525402,3.103,4060.4,4060.2,0.002]
[1761497525728,3.103,4060.3,4060.2,0.002]
[1761497525898,3.60988,4060.3,4060.2,0.002]
[1761497528033,3.60988,4060.3,4060.2,0.4512]
[1761497528215,0.50688,4060.3,4060.2,0.4512]
[1761497528623,0.50688,4060.3,4060.2,0.002]
[1761497530905,0.50688,4060.3,4060.2,2.89623286]
[1761497533454,0.50688,4060.3,4060.2,0.4333]
[1761497534472,0.50688,4060.3,4060.2,0.002]
[1761497539359,0.50688,4060.3,4060.2,2.46493286]
[1761497539748,0.50688,4060.3,4060.2,0.4333]
[1761497540156,0.50688,4060.3,4060.2,0.002]
[1761497543282,0.95578,4060.3,4060.2,0.002]
[1761497544384,0.50688,4060.3,4060.2,0.002]
[1761497544561,3.7729207,4060.3,4060.2,0.002]
[1761497547774,5.3281207,4060.3,4060.2,0.002]
[1761497548174,4.52501286,4060.2,4060.1,0.002]
[1761497548397,4.97201286,4060.2,4060.1,0.002]
[1761497548671,6.38343279,4060.2,4060.1,0.002]
[1761497548919,6.4819995,4060.2,4060.1,0.002]
[1761497556624,6.4819995,4060.2,4059.6,0.00029668]
[1761497556625,0.50688,4059.8,4059.6,0.00029668]
[1761497556828,4.52543755,4059.5,4058.6,0.002]
[1761497557193,4.97243755,4059.5,4058.6,0.002]
[1761497557405,5.07102613,4059.5,4058.6,0.002]
[1761497557779,5.19422613,4059.5,4058.6,0.002]
[1761497564202,2.46378239,4058.8,4058.6,0.002]
[1761497564402,7.62886239,4058.8,4058.6,0.002]
[1761497564607,8.06416239,4058.8,4058.6,0.002]
[1761497564920,8.1627636,4058.8,4058.6,0.002]
[1761497565829,7.7274636,4058.8,4058.6,0.002]
[1761497566009,9.73939905,4058.8,4058.6,0.002]
[1761497571568,1.5552,4058.7,4058.4,1e-08]
[1761497571767,4.52604451,4058.5,4058.4,1e-08]
[1761497571952,7.62904451,4058.5,4058.4,1e-08]
[1761497572254,8.48902266,4058.5,4058.4,1e-08]
[1761497572956,2.97102666,4058.2,4058.1,0.01]
[1761497573165,6.07702666,4058.2,4058.1,0.01]
[1761497573370,8.06752666,4058.2,4058.1,0.01]
[1761497573693,9.09675704,4058.2,4058.1,0.01]
[1761497574277,9.21995704,4058.2,4058.1,0.01]
[1761497578056,9.21995704,4058.2,4058.1,0.012]
[1761497580086,6.11395704,4058.2,4058.1,0.012]
[1761497580289,4.87492666,4058.2,4058.1,0.012]
[1761497580491,7.97892666,4058.2,4058.1,0.4812]
[1761497580969,7.97892666,4058.2,4058.1,0.012]
[1761497586994,7.75342666,4058.2,4058.1,0.012]
[1761497591482,4.64942666,4058.2,4058.1,0.012]
[1761497591715,8.60785694,4058.2,4058.1,0.012]
[1761497595298,0.65944468,4058.5,4058.1,0.1631]
[1761497595524,2.46410474,4058.3,4058.1,0.6099]
[1761497595730,5.56914666,4058.2,4058.1,0.1631]
[1761497596023,6.07602666,4058.2,4058.1,0.1631]
[1761497596226,6.07602666,4058.2,4058.1,0.6099]
[1761497596441,3.61188,4058.2,4058.1,0.6099]
[1761497598192,0.50688,4058.2,4058.1,0.6099]
[1761497598506,3.61088,4058.2,4058.1,0.6099]
[1761497598705,6.07502666,4058.2,4058.1,0.6099]
[1761497599295,3.61088,4058.2,4058.1,0.6099]
[1761497600232,6.07502666,4058.2,4058.1,0.6099]
[1761497600442,3.61088,4058.2,4058.1,0.6099]
[1761497603757,6.07502666,4058.2,4058.1,0.6099]
[1761497604452,8.39334933,4058.2,4058.1,0.012]
[1761497604640,8.82804933,4058.2,4058.1,0.012]
[1761497604846,9.48749401,4058.2,4058.1,0.012]
[1761497605348,9.61069401,4058.2,4058.1,0.012]
[1761497606063,8.95124933,4058.2,4058.1,0.012]
[1761497606552,4.52628738,4058.1,4058.0,0.002]
[1761497606751,4.52628738,4058.1,4057.6,0.002]
[1761497606752,2.9713303,4057.7,4057.6,0.002]
[1761497607055,6.0753303,4057.7,4057.6,0.002]
[1761497607256,6.5323303,4057.7,4057.6,0.002]
[1761497609174,8.0875303,4057.7,4057.6,0.002]
[1761497609365,9.55333768,4057.7,4057.6,0.002]
[1761497610435,8.8923636,4057.7,4057.6,0.002]
[1761497611636,9.01584515,4057.7,4057.6,0.002]
[1761497612274,5.3293636,4057.7,4057.6,0.002]
[1761497612439,8.4353636,4057.7,4057.6,0.002]
[1761497616241,8.8622636,4057.7,4057.6,0.002]
[1761497616578,8.9854636,4057.7,4057.6,0.002]
[1761497618869,5.4525636,4057.7,4057.6,0.002]
[1761497619040,8.5585636,4057.7,4057.6,0.002]
[1761497619238,8.9854636,4057.7,4057.6,0.002]
[1761497624554,8.5585636,4057.7,4057.6,0.002]
[1761497630287,8.9854636,4057.7,4057.6,0.002]
[1761497630802,8.5585636,4057.7,4057.6,0.002]
[1761497633788,5.4525636,4057.7,4057.6,0.002]
[1761497634014,5.4525636,4057.7,4057.6,0.4473]
[1761497634015,8.5575636,4057.7,4057.6,0.4473]
[1761497634608,8.5575636,4057.7,4057.6,0.002]
[1761497635402,8.5575636,4057.7,4057.6,0.4473]
[1761497637414,7.7547303,4057.7,4057.6,0.4473]
[1761497638114,5.29028,4057.7,4057.6,0.4473]
[1761497638291,7.7547303,4057.7,4057.6,0.4473]
[1761497638487,5.29028,4057.7,4057.6,0.4473]
[1761497638691,7.7547303,4057.7,4057.6,0.4473]
[1761497639605,5.29028,4057.7,4057.6,0.4473]
[1761497641109,7.7547303,4057.7,4057.6,0.4473]
[1761497641883,5.29028,4057.7,4057.6,0.4473]
[1761497642524,0.001,4058.0,4057.6,2.91180191]
[1761497642708,3.105,4057.9,4057.7,0.53763765]
[1761497642905,3.105,4057.9,4057.7,0.99793765]
[1761497643106,0.50688,4057.8,4057.7,0.4603]
[1761497643320,0.50688,4057.8,4057.6,0.002]
[1761497643939,0.50688,4057.8,4057.7,0.4603]
[1761497651639,0.50688,4057.8,4057.6,0.002]
[1761497651840,2.97132535,4057.8,4057.6,0.002]
[1761497652337,2.9713303,4057.7,4057.6,0.002]
[1761497652536,3.0945303,4057.7,4057.6,0.002]
[1761497656825,3.5324303,4057.7,4057.6,0.002]
[1761497658655,3.0945303,4057.7,4057.6,0.002]
[1761497660248,3.5324303,4057.7,4057.6,0.002]
[1761497660460,4.52812306,4057.7,4057.6,0.002]
[1761497662284,6.08332306,4057.7,4057.6,0.002]
[1761497663393,8.74942306,4057.7,4057.6,0.002]
[1761497663592,5.64542306,4057.7,4057.6,0.002]
[1761497663895,8.74942306,4057.7,4057.6,0.002]
[1761497668196,9.18732306,4057.7,4057.6,0.002]
[1761497671998,6.28497276,4057.7,4057.6,0.002]
[1761497672183,8.74942306,4057.7,4057.6,0.002]
[1761497689021,5.28928,4057.7,4057.6,0.4421]
[1761497690430,0.63008,4057.7,4057.6,0.4421]
[1761497690637,3.2272,4057.7,4057.6,0.4421]
[1761497690813,3.73408,4057.7,4057.6,2.90661104]
[1761497691147,3.73408,4057.7,4057.6,0.4421]
[1761497691513,3.73408,4057.7,4057.6,2.90661104]
[1761497691711,3.73408,4057.7,4057.6,0.4421]
[1761497691910,3.73408,4057.7,4057.6,2.90661104]
[1761497692133,3.73408,4057.7,4057.6,0.4421]
[1761497692535,3.73408,4057.7,4057.6,2.90661104]
[1761497692924,3.73408,4057.7,4057.6,0.4421]
[1761497693550,0.63008,4057.7,4057.6,0.97923513]
[1761497693754,3.2282,4058.0,4057.6,0.4421]
[1761497694051,0.50688,4057.9,4057.7,2.9045503]
[1761497694447,0.50688,4057.9,4057.8,0.4401]
[1761497698022,0.50688,4057.9,4057.8,2.90448957]
[1761497699343,0.1242,4058.0,4057.9,2.46432884]
[1761497699540,0.001,4058.0,4057.9,3.68796026]
[1761497701251,0.001,4058.0,4057.9,2.46432884]
[1761497701453,0.50788,4058.0,4057.6,0.002]
[1761497701620,0.50788,4058.0,4057.6,0.4421]
[1761497701821,0.50788,4058.0,4057.6,0.002]
[1761497702057,0.50788,4058.0,4057.6,2.90661031]
[1761497702729,0.50788,4058.0,4057.6,0.4421]
[1761497703055,1.59113304,4058.0,4057.6,0.002]
[1761497703356,0.50688,4057.7,4057.6,0.002]
[1761497703552,3.60988,4057.7,4057.6,0.002]
[1761497703853,4.04238,4057.7,4057.6,0.002]
[1761497704024,3.60988,4057.7,4057.6,0.002]
[1761497704425,3.60988,4057.7,4057.6,0.4688]
[1761497704629,3.60988,4057.7,4057.6,0.002]
[1761497704821,3.970968,4057.7,4057.6,0.002]
[1761497705260,3.60988,4057.7,4057.6,0.002]
[1761497709449,3.73308,4057.7,4057.6,0.002]
[1761497714780,0.63008,4057.7,4057.6,0.002]
[1761497714974,3.73308,4057.7,4057.6,0.4651]
[1761497715783,3.73308,4057.7,4057.6,0.002]
[1761497716984,3.73308,4057.7,4057.6,2.92961104]
[1761497719860,3.73308,4057.7,4057.6,0.4651]
[1761497720195,3.73308,4057.7,4057.6,2.92961104]
[1761497721731,0.63008,4057.7,4057.6,2.92961104]
[1761497725342,0.63008,4057.7,4057.6,0.002]
[1761497725640,0.63008,4057.7,4057.6,2.46651104]
[1761497725937,0.63008,4057.7,4057.6,2.92961104]
[1761497726935,0.63008,4057.7,4057.6,2.46651104]
[1761497727324,0.63008,4057.7,4057.6,2.92961104]
[1761497733719,0.63008,4057.7,4057.6,0.002]
[1761497737549,0.63008,4057.7,4057.6,2.46651104]
[1761497738569,0.63008,4057.7,4057.6,0.002]
[1761497748585,0.63008,4057.7,4057.6,2.46651104]
[1761497751397,0.63008,4057.7,4057.6,0.002]
[1761497759531,0.63008,4057.7,4057.6,2.46651104]
[1761497760825,0.63008,4057.7,4057.6,0.002]
[1761497762038,0.63008,4057.7,4057.6,2.46651104]
[1761497762936,0.63008,4057.7,4057.6,2.90171104]
[1761497763116,3.73208,4057.7,4057.6,3.44080964]
[1761497763311,0.001,4058.0,4057.6,2.90171104]
[1761497763517,0.001,4058.0,4057.9,2.46432884]
[1761497763941,0.001,4058.0,4057.9,2.89952884]
[1761497764307,0.001,4058.0,4057.9,2.46432884]
[1761497765844,0.001,4058.0,4057.9,2.89952884]
[1761497766048,0.001,4058.0,4057.9,3.75864226]
[1761497769546,0.001,4058.0,4057.9,3.88184226]
[1761497771456,0.001,4058.0,4057.9,6.98284226]
[1761497774054,0.001,4058.0,4057.9,3.44664226]
[1761497774249,0.001,4058.0,4057.9,7.00144226]
[1761497778425,0.001,4058.0,4057.9,7.00344226]
[1761497779056,0.001,4058.0,4057.9,6.54964226]
[1761497779380,0.001,4058.0,4057.9,6.88024226]
[1761497779944,0.001,4058.0,4057.9,6.9788148]
[1761497780673,0.49520833,4058.8,4058.7,2.4638431]
[1761497781245,0.95810833,4058.8,4058.7,2.4638431]
[1761497784683,0.49520833,4058.8,4058.7,2.4638431]
[1761497786485,0.95810833,4058.8,4058.7,2.4638431]
[1761497786689,0.95810833,4058.8,4058.6,2.4638848]
[1761497786855,0.4629,4058.7,4058.6,2.4638848]
[1761497787882,0.49520833,4058.8,4058.5,2.46394766]
[1761497788053,0.50688,4058.6,4058.5,2.46394766]
[1761497788589,0.50688,4058.8,4058.6,2.46389923]
[1761497788783,0.50688,4058.8,4058.7,2.4638431]
[1761497789181,0.63008,4058.8,4058.7,2.4638431]
[1761497789580,1.09298,4058.8,4058.7,2.4638431]
[1761497789783,1.09298,4058.8,4057.9,0.002]
[1761497789784,0.91139525,4058.8,4057.9,0.002]
[1761497790111,0.50688,4058.6,4057.9,0.002]
[1761497790267,0.96978,4058.7,4057.9,0.002]
[1761497790268,0.50688,4058.4,4057.9,0.002]
[1761497790698,0.50688,4058.2,4057.9,0.002]
[1761497790899,2.97103122,4058.2,4057.9,0.002]
[1761497791100,0.50688,4058.0,4057.9,0.002]
[1761497791409,3.60688,4058.0,4057.9,0.002]
[1761497791611,4.06978,4058.0,4057.9,0.002]
[1761497791815,4.80922534,4058.0,4057.9,0.002]
[1761497795725,4.34632534,4058.0,4057.9,0.002]
[1761497797339,4.80922534,4058.0,4057.9,0.002]
[1761497799129,4.34632534,4058.0,4057.9,0.002]
[1761497799752,4.46952534,4058.0,4057.9,0.002]
[1761497802550,4.91312534,4058.0,4057.9,0.002]
[1761497803952,1.36952534,4058.0,4057.9,2.46632884]
[1761497804175,4.46952534,4058.0,4057.9,2.95960297]
[1761497804557,3.73008,4058.0,4057.9,0.002]
[1761497804868,3.73008,4058.0,4057.9,2.46632884]
[1761497805227,0.63008,4058.0,4057.9,2.46632884]
[1761497808334,0.63008,4058.0,4057.9,0.002]
[1761497811831,1.07368,4058.0,4057.9,0.002]
[1761497813231,0.63008,4058.0,4057.9,0.002]
[1761497814570,0.63008,4058.0,4057.9,2.46632884]
[1761497816065,0.63008,4058.0,4057.9,0.002]
[1761497816572,0.63008,4058.0,4057.9,2.46632884]
[1761497819943,0.1232,4058.2,4058.1,2.46420738]
[1761497820146,3.2232,4058.2,4058.1,2.90140738]
[1761497820571,3.2232,4058.2,4058.1,2.46420738]
[1761497820775,0.1232,4058.2,4058.1,3.05250738]
[1761497821079,3.2232,4058.2,4058.1,2.61530738]
[1761497822743,0.1232,4058.2,4058.1,2.61530738]
[1761497823046,0.1232,4058.2,4058.1,3.05020738]
[1761497823251,0.1232,4058.2,4058.1,0.586]
[1761497823450,0.1232,4058.2,4058.1,0.1511]
[1761497823967,0.1232,4058.2,4058.1,2.61530738]
[1761497824791,3.1,4058.4,4058.1,3.05020738]
[1761497824995,3.60688,4058.4,4058.3,2.46408594]
[1761497825291,3.60688,4058.4,4058.3,2.89898594]
[1761497825725,0.50688,4058.4,4058.3,2.46408594]
[1761497825857,0.50688,4058.4,4058.3,2.89898594]
[1761497826058,0.50688,4058.4,4058.3,2.46408594]
[1761497826747,0.50688,4058.3,4058.2,2.464128]
[1761497827076,0.63008,4058.5,4058.2,2.464128]
[1761497830065,0.63008,4058.5,4058.1,2.61526018]
[1761497830266,0.4298,4058.4,4057.9,0.1252]
[1761497830470,0.4298,4058.4,4058.0,2.4642297]
[1761497830968,0.4298,4058.4,4058.1,2.46419492]
[1761497831643,2.9709112,4058.4,4057.9,0.1252]
[1761497831848,3.5288,4058.3,4057.9,0.002]
[1761497832070,0.50688,4058.1,4057.9,0.002]
[1761497832556,0.93668,4058.0,4057.9,0.002]
[1761497840598,3.40094811,4058.0,4057.9,0.002]
[1761497840824,8.05514811,4058.0,4057.9,0.002]
[1761497841119,9.84672585,4058.0,4057.9,0.002]
[1761497841424,2.9713303,4057.7,4057.6,0.002]
[1761497841599,6.0703303,4057.7,4057.6,0.002]
[1761497841917,6.4981303,4057.7,4057.6,0.002]
[1761497842220,6.59675947,4057.7,4057.6,0.002]
[1761497842387,8.07620434,4057.7,4057.6,0.002]
[1761497849710,9.63140434,4057.7,4057.6,0.002]
[1761497850631,9.75460434,4057.7,4057.6,0.002]
[1761497851846,10.24921895,4057.7,4057.6,0.002]
[1761497852911,10.77666845,4057.7,4057.6,0.002]
[1761497855241,10.90030224,4057.7,4057.6,0.002]
[1761497856935,2.97145178,4057.5,4057.2,0.002]
[1761497857267,5.31820764,4057.5,4057.2,0.002]
[1761497857443,2.97157326,4057.3,4057.2,0.002]
[1761497857640,8.15422276,4057.3,4057.2,0.002]
[1761497857845,8.70522276,4057.3,4057.2,0.002]
[1761497858229,5.70386628,4057.3,4057.2,0.002]
[1761497858544,9.64683821,4057.3,4057.2,0.002]
[1761497858930,5.59187122,4057.3,4057.2,0.002]
[1761497859156,4.24173678,4057.3,4057.2,0.002]
[1761497859364,7.34173678,4057.3,4057.2,0.002]
[1761497859945,7.84861678,4057.3,4057.2,0.002]
[1761497861064,8.27641678,4057.3,4057.2,0.002]
[1761497862076,7.84861678,4057.3,4057.2,0.002]
[1761497862242,9.37692674,4057.3,4057.2,0.002]
[1761497864195,9.90483784,4057.3,4057.2,0.002]
[1761497864358,9.90483784,4057.3,4057.0,0.002]
[1761497864359,4.52689476,4057.1,4057.0,0.002]
[1761497864561,5.05480586,4057.1,4057.0,0.002]
[1761497864796,2.97187704,4056.8,4056.3,0.002]
[1761497865097,8.16498814,4056.8,4056.3,0.002]
[1761497865395,8.62918814,4056.8,4056.3,0.002]
[1761497865693,2.97212011,4056.4,4056.3,0.002]
[1761497865993,8.16523121,4056.4,4056.3,0.002]
[1761497866163,8.95339839,4056.4,4056.3,0.002]
[1761497869565,9.38859839,4056.4,4056.3,0.002]
[1761497871511,5.81439839,4056.4,4056.3,0.002]
[1761497871701,8.92439839,4056.4,4056.3,0.002]
[1761497872102,9.38759839,4056.4,4056.3,0.002]
[1761497872504,2.97345786,4054.2,4053.2,1.32220585]
[1761497872703,2.97345786,4054.2,4053.1,0.1591]
[1761497872704,8.13245786,4054.2,4053.1,0.1591]
[1761497872888,0.50688,4053.4,4053.1,0.1591]
[1761497873089,0.50688,4053.4,4053.1,0.5943]
[1761497873090,0.50688,4053.2,4053.1,0.5943]
[1761497874289,5.05576594,4053.2,4053.1,0.01]
[1761497874494,2.58857952,4053.2,4053.1,0.01]
[1761497875290,2.80250171,4053.2,4053.1,0.01]
[1761497875513,3.32830908,4053.2,4053.1,0.01]
[1761497875711,5.7954955,4053.2,4053.1,0.01]
[1761497876416,5.26968813,4053.2,4053.1,0.01]
[1761497876596,5.73418813,4053.2,4053.1,0.01]
[1761497876981,5.26968813,4053.2,4053.1,0.01]
[1761497877821,2.80250171,4053.2,4053.1,0.1591]
[1761497877999,2.80250171,4053.2,4053.1,0.5943]
[1761497878456,2.80250171,4053.2,4053.1,0.1611]
[1761497879032,2.80250171,4053.2,4053.1,0.5963]
[1761497879240,4.38530171,4053.2,4053.1,0.5963]
[1761497879445,3.138,4053.2,4053.1,0.5963]
[1761497879927,3.64488,4053.2,4053.1,0.5963]
[1761497880125,0.66062482,4054.6,4053.1,0.90267096]
[1761497880308,0.74026824,4053.7,4053.2,0.4352]
[1761497880508,3.139,4053.6,4053.3,2.46711227]
[1761497880808,3.139,4053.6,4053.4,2.90225824]
[1761497881008,0.50688,4053.5,4053.4,2.90225824]
[1761497881244,3.139,4054.0,4053.6,2.46692142]
[1761497881444,0.50688,4053.9,4053.6,2.46692142]
[1761497881742,3.139,4054.0,4053.7,0.4352]
[1761497882256,0.50688,4053.9,4053.7,0.4352]
[1761497883952,2.97368959,4053.9,4053.4,0.4742]
[1761497884361,0.50688,4053.6,4053.4,0.4742]
[1761497885310,0.50688,4053.6,4053.1,2.75154649]
[1761497885655,0.50688,4053.6,4053.5,0.4742]
[1761497891630,0.50688,4053.6,4053.1,1.25349562]
[1761497891933,0.50688,4053.6,4053.2,0.4473]
[1761497893033,0.50688,4053.6,4053.1,0.1352]
[1761497893236,0.50688,4053.5,4053.1,0.6084]
[1761497893435,0.50688,4053.3,4053.2,0.1491]
[1761497893744,0.66062482,4054.1,4053.2,0.5964]
[1761497893941,2.06208,4053.9,4053.2,0.5964]
[1761497894143,0.50688,4053.7,4053.4,2.4670478]
[1761497894349,0.50688,4053.5,4053.4,2.4670478]
[1761497894645,0.50688,4053.5,4053.4,2.9143478]
[1761497895163,0.50688,4054.2,4053.7,2.46683732]
[1761497895349,0.50688,4054.0,4053.7,2.46683732]
[1761497895555,0.50688,4053.9,4053.8,0.4473]
[1761497896750,3.136,4054.0,4053.8,0.4473]
[1761497897770,0.001,4054.1,4053.8,0.4473]
[1761497897934,3.137,4054.1,4053.8,0.4473]
[1761497898133,3.137,4054.1,4053.8,2.91407298]
[1761497898345,3.137,4054.1,4053.9,2.46675682]
[1761497898568,3.64388,4054.1,4054.0,0.4473]
[1761497899856,0.50788,4054.1,4054.0,0.4473]
[1761497900765,0.50788,4054.1,4054.0,2.91399955]
[1761497901485,0.001,4054.1,4054.0,3.4520814]
[1761497903165,0.001,4054.1,4054.0,3.5752814]
[1761497916016,0.001,4054.1,4054.0,3.5772814]
[1761497917106,0.001,4054.1,4054.0,2.59189955]
[1761497917603,0.001,4054.1,4054.0,3.03919955]
[1761497921006,0.001,4054.1,4054.0,2.59189955]
[1761497921397,0.001,4054.1,4054.0,3.02819955]
[1761497923029,0.001,4054.1,4054.0,2.59189955]
[1761497923812,0.001,4054.1,4054.0,3.02819955]
[1761497925841,0.001,4054.1,4054.0,3.8905014]
[1761497927428,0.001,4054.1,4054.0,7.0145014]
[1761497928538,0.001,4054.1,4054.0,8.5697014]
[1761497942463,0.001,4054.1,4054.0,8.4465014]
[1761497942670,0.001,4054.1,4054.0,8.5697014]